Cogmind - Beta 17 @@@ ROGUE MODE // 2026.06.26 @ 22:31:58 Player: Alvin Result: Destroyed by RN-4TQ(R) with Subdweller Laser Performance ------------- Evolutions (0) 0 Regions Visited (2) 400 Robots Destroyed (5) 25 Value Destroyed (200) 200 Prototype IDs (0) 0 Alien Tech Used (0) 0 Bonus (0) 0 TOTAL SCORE: 625 Bonus ------- None Cogmind --------- Core Integrity 0/250 Matter 295/300 Energy 250/250 System Corruption 0% Temperature Cool (6) Movement Walking (190) Ox1 Location -10/Subcaves Parts ------- > --- POWER (1) -------- Ion Engine > --- PROPULSION (2) --- Aluminum Leg > --- UTILITY (2) ------ Small Storage Unit > --- WEAPON (2) ------- Medium Laser Multitool > --- INVENTORY (8) ---- Subdweller Power Source Aluminum Leg Improved Heat Sink Medium Laser Scrap Shield Fragment (38) Peak State ------------ > --- POWER ------------ Subdweller Power Source > --- PROPULSION ------- Wheel Subdweller Monowheel > --- UTILITY ---------- Small Storage Unit > --- WEAPON ----------- Medium Laser Particle Cannon > --- INVENTORY -------- Ion Engine Medium Laser Scrap Shield Fragment [Rating: 9] Favorites ----------- Power Subdweller Power Source Engine Subdweller Power Source Propulsion Aluminum Leg Leg Aluminum Leg Wheel Subdweller Monowheel Utility Small Storage Unit Storage Small Storage Unit Weapon Medium Laser Energy Gun Medium Laser Energy Cannon Particle Cannon Special Weapon Multitool Build | -11 -10 -10 ------- Run | Yrd Mat Sub Slots Evolved . | . . . Power . | . . . Propulsion . | . . . Utility . | . . . Weapon . | . . . Parts Attached 16 | 6 . 10 Power 4 | 1 . 3 Engine 4 | 1 . 3 Core . | . . . Reactor . | . . . Propulsion 6 | 2 . 4 Treads . | . . . Leg 4 | 2 . 2 Wheel 2 | . . 2 Hover . | . . . Flight . | . . . Utility 1 | 1 . . Device . | . . . Storage 1 | 1 . . Processor . | . . . Hackware . | . . . Protection . | . . . Artifact . | . . . Weapon 5 | 2 . 3 Energy Gun 3 | 2 . 1 Energy Cannon 1 | . . 1 Ballistic Gun . | . . . Ballistic Cannon . | . . . Launcher . | . . . Special Weapon 1 | . . 1 Impact Weapon . | . . . Slashing Weapon . | . . . Piercing Weapon . | . . . Special Melee Weapon . | . . . Unidentified Prototypes . | . . . Parts Lost 8 | . . 8 Power 1 | . . 1 Propulsion 5 | . . 5 Utility . | . . . Weapon 2 | . . 2 Highest Loss Streak 4 | . . 4 To Critical Strikes . | . . . Average Backups 4 | 1 2 4 Power 1 | . 1 1 Propulsion . | . 1 . Utility . | . . . Weapon 1 | . . 1 Tool/Special . | . . . Unused Backups 3 | . . 3 Power 1 | . . 1 Propulsion 1 | . . 1 Utility 1 | . . 1 Weapon . | . . . Tool/Special . | . . . Average Slot Usage (%) 65 | . 85 63 Engine 8 | . 14 8 Leg 12 | . 28 10 Wheel 2 | . . 2 Storage 14 | . 14 14 Energy Gun 17 | . 28 16 Energy Cannon 10 | . . 11 Peak Build Rating 9 | 6 6 9 Average Rating 6 | 3 6 6 On Entrance 4 | . 6 6 Avg Prop Armor Cover (%) 11 | . . 11 Naked Turns . | . . . Heaviest Build 16 | 12 12 16 Greatest Support 30 | 20 20 30 Greatest Overweight (x) 5 | . . 5 Average Overweight (x) 1 | . . 1 Largest Inventory Capacity 8 | 8 8 8 Average Capacity 7 | 5 8 8 Most Carried 8 | 4 4 8 Average Carried 5 | 1 2 5 Final Capacity 8 | 8 8 8 Final Carried 5 | 2 4 5 Class Distribution -------------------- 100% | Mutant Dominant Class ---------------- Mutant | -10/Materials Mutant | -10/Subcaves Resources | -11 -10 -10 ----------- Run | Yrd Mat Sub Matter Collected 350 | 198 62 90 Remotely . | . . . Salvage Created 240 | . . 240 Parts 11 | . . 11 Haulers Intercepted . | . . . Recyclers Shooed . | . . . Parts Field Recycled . | . . . Retrieved Matter . | . . . Parts Self-Destructed . | . . . Prevented . | . . . Parts Restored . | . . . Kills | -11 -10 -10 ------- Run | Yrd Mat Sub Combat Hostiles Destroyed 5 | . . 5 Guns 3 | . . 3 Cannons 2 | . . 2 Classes Destroyed 1 | . . 1 Subdweller 5 | . . 5 Best Kill Streak 2 | . . 2 Combat Bots Only 2 | . . 2 Max Kills in Single Turn 1 | . . 1 Gunslinging . | . . . Exploded . | . . . Melee . | . . . Uniques/NPCs Destroyed . | . . . Combat | -11 -10 -10 -------- Run | Yrd Mat Sub Hostile Shots Fired 65 | . . 65 Missed 18 | . . 18 Hits 47 | . . 47 Projectile 47 | . . 47 Critical Strikes 3 | . . 3 Damage Taken 1115 | . . 1115 Core 256 | . . 256 Absorbed by Shields . | . . . Core Remaining (%) 100 | 100 . . Volleys Fired 28 | . . 28 Largest 2 | . . 2 Hottest 118 | . . 118 Shots Fired 54 | . . 54 Gun 37 | . . 37 Cannon 17 | . . 17 Launcher . | . . . Special . | . . . Kinetic . | . . . Thermal 46 | . . 46 Explosive . | . . . Electromagnetic 8 | . . 8 Robot Hit Streak 9 | . . 9 Robot Miss Streak 2 | . . 2 Penetration Max . | . . . Secondary Targets . | . . . Shots Hit Robots 40 | . . 40 Core Hits 12 | . . 12 Critical Kills . | . . . Critical Parts Destroyed . | . . . Critical Strikes 3 | . . 3 Burn 3 | . . 3 Melee Attacks . | . . . Impact . | . . . Slashing . | . . . Piercing . | . . . Sneak Attacks . | . . . Combat Hostiles . | . . . Follow-up Attacks . | . . . Damage Inflicted 459 | . . 459 Guns 252 | . . 252 Cannons 205 | . . 205 Explosions . | . . . Melee . | . . . Ramming 2 | . . 2 Kinetic . | . . . Thermal 432 | . . 432 Explosive . | . . . Electromagnetic 25 | . . 25 Impact . | . . . Slashing . | . . . Piercing . | . . . Highest Corruption . | . . . Average Corruption . | . . . Corruption Purged . | . . . Corruption Blocked . | . . . Overload Shots . | . . . Overflow Damage . | . . . Projectiles . | . . . Explosions . | . . . Melee . | . . . Knockbacks . | . . . Impact . | . . . Kinetic . | . . . Secondary . | . . . Self-Inflicted Damage . | . . . Shots . | . . . Rammed . | . . . Targets Rammed 1 | . . 1 Kicked 1 | . . 1 Crushed . | . . . Highest Temperature 24 | . . 24 Average Temperature 7 | . . 7 Received Heat Transfer 300 | . . 300 Siege Activations . | . . . Martial Activations . | . . . Shielding Activations . | . . . Robots Disrupted . | . . . Combat Hostiles . | . . . Robots Corrupted . | . . . Combat Hostiles . | . . . Parts Fried . | . . . Impact Corruptions . | . . . Robots Melted . | . . . Combat Hostiles . | . . . Parts Melted 2 | . . 2 Heat Transferred 1258 | . . 1258 Parts Sabotaged . | . . . Parts Stolen . | . . . Parts Stripped . | . . . Power Chain Reactions . | . . . Alert | -11 -10 -10 ------- Run | Yrd Mat Sub Maximum Alert Level . | . . . Low Security (%) 100 | 100 100 . Level 1 . | . . . Level 2 . | . . . Level 3 . | . . . Level 4 . | . . . Level 5 . | . . . High Security . | . . . Max Security . | . . . Peak Influence . | . . . Initial . | . . . Average . | . . . Influence Increases . | . . . Influence Decreases . | . . . Squads Dispatched . | . . . Investigation . | . . . Extermination . | . . . Reinforcement . | . . . Assault . | . . . Garrison . | . . . Intercept . | . . . Searches Triggered . | . . . Construction Impeded . | . . . Haulers Reinforced . | . . . Active Scanning Responses . | . . . Cargo Convoy Interrupts . | . . . Stealth | -11 -10 -10 --------- Run | Yrd Mat Sub Distress Signals . | . . . Communications Jammed . | . . . Distress Signals . | . . . Times Spotted 10 | . . 10 Peak Tracking Total 3 | . . 3 Tactical Retreats . | . . . Traps | -11 -10 -10 ------- Run | Yrd Mat Sub Traps Triggered 2 | . . 2 Indirectly . | . . . Trap Hack Attempts . | . . . Triggered . | . . . Disarmed . | . . . Reprogrammed . | . . . Reused . | . . . Traps Extracted . | . . . Installed . | . . . Triggered . | . . . Machines | -11 -10 -10 ---------- Run | Yrd Mat Sub Machines Disabled . | . . . Max in Single Turn . | . . . Machines Repaired . | . . . Machines Dismantled . | . . . Machines Sabotaged . | . . . Overloaded Fab Kills . | . . . Hacking | -11 -10 -10 --------- Run | Yrd Mat Sub Machines Accessed . | . . . Terminals . | . . . Fabricators . | . . . Repair Stations . | . . . Recycling Units . | . . . Scanalyzers . | . . . Garrison Access . | . . . Total Hacks . | . . . Successful . | . . . Failed . | . . . Catastrophic . | . . . Database Lockouts . | . . . Manual . | . . . Terminals . | . . . Fabricators . | . . . Repair Stations . | . . . Recycling Units . | . . . Scanalyzers . | . . . Garrison Access . | . . . Terminal Hacks . | . . . Fabricator Hacks . | . . . Repair Station Hacks . | . . . Recycling Unit Hacks . | . . . Scanalyzer . | . . . Garrison Access Hacks . | . . . Unauthorized Hacks . | . . . Terminals . | . . . Fabricators . | . . . Repair Stations . | . . . Recycling Units . | . . . Scanalyzers . | . . . Garrison Access . | . . . Data Cores Recovered . | . . . Used . | . . . Hacking Detections . | . . . Full Trace Events . | . . . Feedback Events . | . . . Feedback Blocked . | . . . Robot Schematics Acquired . | . . . Robots Built . | . . . Authchips . | . . . Time . | . . . Total Robot Build Rating . | . . . Part Schematics Acquired . | . . . Parts Built . | . . . Authchips . | . . . Time . | . . . Total Part Build Rating . | . . . Part Studies Acquired . | . . . Parts Repaired . | . . . Time . | . . . Parts Recycled . | . . . Recycled Matter . | . . . Retrieved Matter . | . . . Retrieved Components . | . . . Parts Scanalyzed . | . . . Part Schematics Acquired . | . . . Parts Damaged . | . . . Bothacking | -11 -10 -10 ------------ Run | Yrd Mat Sub Used RIF Installer . | . . . Robots Hacked . | . . . Non-combat . | . . . Combat . | . . . Robot Hacks Applied . | . . . Relay Couplers Released . | . . . Fabnet Peak Effective % . | . . . Robots Rewired . | . . . Allies Hacked . | . . . Hacks Repelled . | . . . Allies | -11 -10 -10 -------- Run | Yrd Mat Sub Total Allies . | . . . Largest Group . | . . . Highest-Rated Group . | . . . Highest-Rated Ally . | . . . Total Orders . | . . . Ally Attacks . | . . . Total Damage . | . . . Kills . | . . . Allies Corrupted . | . . . Allies Melted . | . . . Intel | -11 -10 -10 ------- Run | Yrd Mat Sub Active Infowar (turns) . | . . . Robot Analysis Total . | . . . Derelict Logs Recovered 1 | . . 1 Drone Launches . | . . . Drone Recoveries . | . . . Exploration | -11 -10 -10 ------------- Run | Yrd Mat Sub Turns Passed 1356 | 60 146 1150 Spaces Moved 754 | 39 118 597 Core 249 | 3 . 246 Treads . | . . . Legs 435 | 36 118 281 Wheels 70 | . . 70 Hover . | . . . Flight . | . . . Fastest Speed 50 | 50 120 95 Average Speed 157 | 114 120 167 Slowest Speed 300 | 120 120 300 Overloaded Moves . | . . . Propulsion Burnouts . | . . . Robots Hopped . | . . . Potential Cave-ins . | . . . Cave-ins Triggered . | . . . Exploration Rate (%) 17 | 3 19 31 Regions Visited 2 Branch Regions 1 Pre-discovered Areas 1 | . . 1 Known Exits Taken . | . . . Unknown Exits Taken 2 | 1 1 . Scrap Searched . | . . . Spaces Dug . | . . . Terrain Destroyed . | . . . Melee . | . . . Projectile . | . . . AOE . | . . . Terrain Rammed . | . . . Walls Destroyed . | . . . Machines Disabled . | . . . Actions | -11 -10 -10 --------- Run | Yrd Mat Sub Total 866 | 54 122 690 Wait 46 | 2 3 41 Move 752 | 38 117 597 Hop . | . . . Pick Up 20 | 8 2 10 Fast Attach . | . . . Attach 14 | 6 . 8 Detach . | . . . Swap 3 | . . 3 Drop 2 | . . 2 Fire 28 | . . 28 Melee . | . . . Ram . | . . . Kick 1 | . . 1 Crush . | . . . Escape Stasis . | . . . Rewire . | . . . Trap . | . . . Miscellaneous . | . . . Route ------- -11/Scrapyard -10/Materials -10/Subcaves History --------- Turn | Location | Event 35 | -11/Scrapyard | Discovered new exit (range 15) 61 | -11/Scrapyard | Entered Materials 62 | -10/Materials | Met a group of wandering Federalists 118 | -10/Materials | Discovered new exit (range 10) 207 | -10/Materials | Entered Subcaves 208 | -10/Subcaves | Continued accompanying wandering Federalists (5) 210 | -10/Subcaves | Learned location of Zion (-7) 307 | -10/Subcaves | Build established: Mutant 371 | -10/Subcaves | Core integrity fell below 50% 376 | -10/Subcaves | Lost 4 allies 408 | -10/Subcaves | Lost 4 parts (1p2n1w) 437 | -10/Subcaves | A swath of the cavern ceiling suddenly collapsed 494 | -10/Subcaves | Shifting Twisted Machinery released Multitool 508 | -10/Subcaves | Shifting Twisted Machinery released Sub. Power Source 849 | -10/Subcaves | Shifting Twisted Machinery released Flamer 850 | -10/Subcaves | Shifting Twisted Machinery released Sub. Power Source 1343 | -10/Subcaves | Core integrity fell below 20% 1357 | -10/Subcaves | Destroyed by RN-4TQ(R) with Subdweller Laser Last Messages --------------- 00805_ Sub. Power Source shoots sparks and powers down. 00807_ Dropped Broken Sub. Power Source. Flamer falls loose from the Twisted Machinery. Sub. Power Source falls loose from the Twisted Machinery. 01095_ Acquired Aluminum Leg. 01115_ Subatomizers dissect the Salvaging Laser. 01123_ Acquired 20 matter. 01188_ Disposable Heat Sink melted. 01188_ ZY-FYT(R) destroyed. 01294_ B4-79I(R) suffers critical hit (Burn). 01294_ B4-79I(R) destroyed. 01300_ Acquired 10 matter. 01345_ RM-ULA(R) suffers critical hit (Burn). 01347_ Particle Cannon destroyed. 01349_ Aluminum Leg destroyed. 01350_ RM-ULA(R) destroyed. 01356_ Kicked RN-4TQ(R). [Achievement: For Emergencies Only] Map ----- +----------------------------------------------------+ | ?????????????????????????????????????????????????? | | ?????????????????????????????????????????????????? | | ?????????????????????????????????????????????????? | | ?????????????????????????????????????????????????? | | ?????????????????????????????????????????????????? | | ?????????????????????????????????????????????????? | | ?????????????????????????????????????????????????? | | ?????????????????????????????????????????????????? | | ?????????????????????????????????????????????????? | | ?????????????????????????????????????????????????? | | ?????????????????????????????????????????????????? | | ?????????????????????????????????????????????????? | | ?????????????????????????????????????????????????? | | ?????????????????????????????????????????????????? | | ?????????????????????????????????????????????????? | | ?????????????????????????????????????????????????? | | ?????????????????????????????????????????????????? | | ?????????????????????????????????????????????????? | | ????????????????????????????????????#### ????????? | | ??????????????????????###????????? ??????? | | ??????? ????????????## #######?# % ?????? | | ????# ? ###????????## # # ?????? | | ???? ?# """?????## ?????? | | ???? ## ""???### "" [ % %?????? | | ???? "??## # ## R%# # % ?????? | | ????# ? ??# ## @!####? ??????? | | ???## ### ### #???? ??????? | | ???# # ## #?# ##?????? ???????? | | ???? #???# #### ##???????? ???????? | | ???? ##??# # ## ####?????????? ???????? | | ???## #??# ## ##????????????? ????????? | | ???? #??# ## #?????????????? ????????? | | ???## #?## #???????????????????????? | | ??## #?# #???????????????????????? | | ??# ####### #???????????????????????? | | ??# ##???## ##???????????????????????? | | ???# #???## ##????????????????????????? | | ???## ##### ######?????????????????????????? | | ????# ## &%& ##??????????????????????????????? | | ????# # && #???????????????????????????????? | | ????# ##???????????????????????????????? | | ????# ###????????????????????????????????? | | ????# # # ##??????????????????????????????????? | | ???## ##########???????????????????????????????? | | ???# # #"# ###?????????????????????????????? | | ???## ## "" #?????????????????????????????? | | ????# #### ""# #?????????????????????????????? | | ???## #?## ""## #??##?????????????????????????? | | ???# ##?# ## ###"##????????????????????????? | | ???####??##"" ##"""#?????????###????????????? | +----------------------------------------------------+ Best States ------------- Heat Dissipation 25 Energy Generation 15 Energy Capacity 250 Matter Stores 300 Matter Capacity 300 Sight Range 16 Terrain Scan Density 10 Evasion (%) 55 Item Schematics ----------------- None Robot Schematics ------------------ None Fabricated ------------ Nothing Repaired ---------- Nothing Studied --------- None Alien Tech Used ----------------- None Achievements -------------- DATA ERROR: Steam Global Achievement% For Emergencies Only Strength In Numbers There's More Where That Came From Challenges ------------ None Game ------ Seed InterdictionTimingFragment Manual? 0 Play Time 00:17:48 Cumulative 33.5 hours Start 2026.06.26 @ 18:58:38 End 2026.06.26 @ 22:31:58 Sessions 1 Manual Loads 0 Difficulty Rogue Special Mode None Game No. 52 Rogue 52 Adventurer 0 Explorer 0 Win Type - Total 0 Types 0/0/0/0/0/0/0/0/0/0 Lore% 10 Gallery% 25 Achievement% 12 Wizard Run 0 Options --------- Layout 1 ASCII 0 Keyboard 0 Movement Mouse Keybinds 0 Fullscreen 1 Font 16/SmallcapsGlow Map View 50x40 Zoom Use 0% Tactical HUD 1 Map Filters NONE Filters NONE Steam SD RUN: 2e2f0be0-b693-4777-9494-e7511d796ee8